[Event "3rd FIDE WCCC Blitz G08 2019"]
[Site "Minsk"]
[Date "2019.08.18"]
[Round "6.5"]
[White "Frolova, Umila"]
[Black "Skamaroshchanka, Daryia"]
[Result "1/2-1/2"]
[ECO "B06"]
[WhiteElo "1252"]
[BlackElo "1034"]
[Annotator "NA"]
[PlyCount "80"]
[EventDate "2019.08.18"]
[EventType "swiss"]
[EventCountry "BLR"]
[SourceTitle "playchess.com"]
[Source "ChessBase"]
[SourceQuality "1"]
[TimeControl "300+2"]

1. e4 {[%emt 0:00:00]} g6 {[%emt 0:00:01]} 2. g3 {[%emt 0:00:00]} Bg7 {[%emt 0:00:02]} 3. Bg2 {[%emt 0:00:02]} e6 {[%emt 0:00:13]} 4. d3 {[%emt 0:00:01]} Ne7 {[%emt 0:00:02]} 5. Nf3 {[%emt 0:00:04]} b6 {[%emt 0:00:04]} 6. O-O {[%emt 0:00:02]} Bb7 {[%emt 0:00:01]} 7. Nc3 {[%emt 0:00:05]} d6 {[%emt 0:00:01]} 8. a3 {[%emt 0:00:07]} Nd7 {[%emt 0:00:05]} 9. Rb1 {[%emt 0:00:02]} O-O {[%emt 0:00:03]} 10. Bd2 {[%emt 0:00:08]} d5 {[%emt 0:00:22]} 11. exd5 {[%emt 0:00:07]} Nxd5 12. Nxd5 {[%emt 0:00:00]} exd5 {[%emt 0:00:07]} 13. Re1 {[%emt 0:00:02]} c5 {[%emt 0:00:06]} 14. Qc1 {[%emt 0:00:04]} Qc7 {[%emt 0:00:16]} 15. Bh6 {[%emt 0:00:02]} Rfe8 {[%emt 0:00:05]} 16. Bxg7 {[%emt 0:00:01]} Kxg7 {[%emt 0:00:03]} 17. Qd2 {[%emt 0:00:01]} d4 {[%emt 0:00:18]} 18. Rxe8 {[%emt 0:00:07]} Rxe8 {[%emt 0:00:02]} 19. Re1 {[%emt 0:00:01]} Ne5 {[%emt 0:00:26]} 20. Nxe5 {[%emt 0:00:05]} Bxg2 21. Kxg2 {[%emt 0:00:01]} Rxe5 {[%emt 0:00:11]} 22. Re2 {[%emt 0:00:04]} Qe7 {[%emt 0:00:06]} 23. Rxe5 {[%emt 0:00:06]} Qxe5 {[%emt 0:00:00]} 24. Kf1 {[%emt 0:00:00]} f5 {[%emt 0:00:09]} 25. Qe2 {[%emt 0:01:50]} Kf6 {[%emt 0:00:04]} 26. f4 {[%emt 0:00:07]} Qxe2+ 27. Kxe2 {[%emt 0:00:00]} Ke6 {[%emt 0:00:06]} 28. Kf3 {[%emt 0:00:02]} Kd5 {[%emt 0:00:02]} 29. b3 {[%emt 0:00:02]} b5 {[%emt 0:00:02]} 30. h3 {[%emt 0:00:15]} c4 {[%emt 0:00:03]} 31. Ke2 {[%emt 0:00:10]} a5 {[%emt 0:00:05]} 32. g4 {[%emt 0:00:10]} Kc5 {[%emt 0:00:21]} 33. Kd2 {[%emt 0:00:18]} Kd5 {[%emt 0:00:01]} 34. Ke2 {[%emt 0:00:02]} h6 {[%emt 0:00:07]} 35. gxf5 {[%emt 0:00:09]} gxf5 {[%emt 0:00:02]} 36. h4 {[%emt 0:00:02]} h5 {[%emt 0:00:02]} 37. Kd2 {[%emt 0:00:02]} cxb3 {[%emt 0:00:03]} 38. cxb3 {[%emt 0:00:01]} Kc5 {[%emt 0:00:01]} 39. Kc2 {[%emt 0:00:03]} Kc6 {[%emt 0:00:10]} 40. Kd2 {[%emt 0:00:03]} Kd5 {[%emt 0:00:19]} 1/2-1/2

[Event "3rd FIDE WCCC Blitz G08 2019"]
[Site "Minsk"]
[Date "2019.08.18"]
[Round "6.6"]
[White "Matskevich, Varvara"]
[Black "Gerasimova, Maria V."]
[Result "1-0"]
[ECO "C71"]
[WhiteElo "1176"]
[BlackElo "1076"]
[Annotator "NA"]
[PlyCount "115"]
[EventDate "2019.08.18"]
[EventType "swiss"]
[EventCountry "BLR"]
[SourceTitle "playchess.com"]
[Source "ChessBase"]
[SourceQuality "1"]
[TimeControl "300+2"]

1. e4 {[%emt 0:00:00]} e5 {[%emt 0:00:00]} 2. Nf3 {[%emt 0:00:02]} Nc6 {[%emt 0:00:00]} 3. Bb5 {[%emt 0:00:01]} a6 {[%emt 0:00:00]} 4. Ba4 {[%emt 0:00:01]} d6 {[%emt 0:00:06]} 5. d4 {[%emt 0:00:02]} exd4 {[%emt 0:00:01]} 6. Nxd4 {[%emt 0:00:02]} b5 {[%emt 0:00:00]} 7. Bxb5 {[%emt 0:00:18]} axb5 {[%emt 0:00:04]} 8. Nxc6 {[%emt 0:00:01]} Qd7 {[%emt 0:00:01]} 9. Nd4 {[%emt 0:00:02]} Nf6 {[%emt 0:00:03]} 10. f3 {[%emt 0:00:02]} Be7 {[%emt 0:00:03]} 11. Be3 {[%emt 0:00:02]} O-O {[%emt 0:00:04]} 12. O-O {[%emt 0:00:02]} Bb7 {[%emt 0:00:09]} 13. a3 {[%emt 0:00:02]} d5 {[%emt 0:00:02]} 14. e5 {[%emt 0:00:11]} Ne8 {[%emt 0:00:05]} 15. Nc3 {[%emt 0:00:08]} Bc5 {[%emt 0:00:02]} 16. Re1 {[%emt 0:00:17]} f6 {[%emt 0:00:04]} 17. exf6 {[%emt 0:00:08]} Nxf6 {[%emt 0:00:01]} 18. Ndxb5 {[%emt 0:00:10]} Bxe3+ {[%emt 0:00:06]} 19. Rxe3 {[%emt 0:00:01]} c6 {[%emt 0:00:04]} 20. Nd4 {[%emt 0:00:11]} c5 {[%emt 0:00:02]} 21. Nde2 {[%emt 0:00:17]} d4 {[%emt 0:00:01]} 22. Rd3 {[%emt 0:00:04]} Qf5 {[%emt 0:00:19]} 23. Nb1 {[%emt 0:00:04]} Qg6 {[%emt 0:00:16]} 24. Kh1 {[%emt 0:00:01]} Nh5 {[%emt 0:00:07]} 25. Nd2 {[%emt 0:00:16]} Nf4 {[%emt 0:00:03]} 26. Nxf4 {[%emt 0:00:04]} Rxf4 {[%emt 0:00:01]} 27. Qe2 {[%emt 0:00:15]} Re8 {[%emt 0:00:06]} 28. Qf2 {[%emt 0:00:06]} Ba6 {[%emt 0:00:35]} 29. Rb3 {[%emt 0:00:19]} c4 {[%emt 0:00:08]} 30. Rb4 {[%emt 0:00:09]} c3 {[%emt 0:00:42]} 31. bxc3 {[%emt 0:00:09]} Re2 {[%emt 0:00:04]} 32. Qg3 {[%emt 0:00:57]} Rxd2 {[%emt 0:00:14]} 33. Rb8+ {[%emt 0:00:04]} Rf8 {[%emt 0:00:08]} 34. Rxf8+ {[%emt 0:00:31]} Kxf8 {[%emt 0:00:04]} 35. Qf4+ {[%emt 0:00:03]} Qf6 {[%emt 0:00:05]} 36. Qxd2 {[%emt 0:00:02]} dxc3 {[%emt 0:00:01]} 37. Qf2 {[%emt 0:00:09]} Qe7 {[%emt 0:00:34]} 38. h3 {[%emt 0:00:11]} Qb7 {[%emt 0:00:03]} 39. Qc5+ {[%emt 0:00:04]} Kg8 {[%emt 0:00:05]} 40. Qxc3 {[%emt 0:00:02]} Qe7 {[%emt 0:00:18]} 41. Re1 {[%emt 0:00:04]} Qb7 {[%emt 0:00:01]} 42. Qb3+ {[%emt 0:00:01]} Qxb3 {[%emt 0:00:01]} 43. cxb3 {[%emt 0:00:01]} Kf7 {[%emt 0:00:02]} 44. b4 {[%emt 0:00:02]} Bb5 {[%emt 0:00:04]} 45. Re5 {[%emt 0:00:02]} Ba6 {[%emt 0:00:02]} 46. a4 {[%emt 0:00:03]} Bb7 {[%emt 0:00:02]} 47. b5 {[%emt 0:00:05]} Kf6 {[%emt 0:00:01]} 48. Re1 {[%emt 0:00:02]} Kf7 {[%emt 0:00:03]} 49. a5 {[%emt 0:00:01]} Ba8 {[%emt 0:00:05]} 50. a6 {[%emt 0:00:04]} h6 {[%emt 0:00:05]} 51. b6 {[%emt 0:00:00]} Kf8 {[%emt 0:00:02]} 52. b7 {[%emt 0:00:03]} Bxb7 {[%emt 0:00:01]} 53. axb7 {[%emt 0:00:04]} Kf7 {[%emt 0:00:02]} 54. b8=Q {[%emt 0:00:03]} Kg6 {[%emt 0:00:02]} 55. Re6+ Kh7 {[%emt 0:00:03]} 56. Qb1+ {[%emt 0:00:08]} Kg8 {[%emt 0:00:03]} 57. Qg6 {[%emt 0:00:02]} Kf8 {[%emt 0:00:05]} 58. Re8# {[%emt 0:00:01]} 1-0

[Event "3rd FIDE WCCC Blitz G08 2019"]
[Site "Minsk"]
[Date "2019.08.18"]
[Round "7.1"]
[White "Tong, Thai Hoang An"]
[Black "Phan, Nguyen Mai Chi"]
[Result "1-0"]
[ECO "B54"]
[WhiteElo "1208"]
[BlackElo "2139"]
[Annotator "NA"]
[PlyCount "209"]
[EventDate "2019.08.18"]
[EventType "swiss"]
[EventCountry "BLR"]
[SourceTitle "playchess.com"]
[Source "ChessBase"]
[SourceQuality "1"]
[TimeControl "300+2"]

1. e4 {[%emt 0:00:00]} c5 {[%emt 0:00:00]} 2. Nf3 {[%emt 0:00:02]} d6 {[%emt 0:00:01]} 3. d4 {[%emt 0:00:01]} cxd4 {[%emt 0:00:02]} 4. Nxd4 {[%emt 0:00:02]} Nf6 {[%emt 0:00:02]} 5. f3 {[%emt 0:00:02]} g6 {[%emt 0:00:02]} 6. c4 {[%emt 0:00:01]} Bg7 {[%emt 0:00:06]} 7. Nc3 {[%emt 0:00:01]} Nc6 {[%emt 0:00:02]} 8. Be3 {[%emt 0:00:02]} O-O {[%emt 0:00:03]} 9. Be2 {[%emt 0:00:02]} Bd7 {[%emt 0:00:04]} 10. Rc1 {[%emt 0:00:02]} Nxd4 {[%emt 0:00:03]} 11. Bxd4 {[%emt 0:00:03]} Bc6 {[%emt 0:00:02]} 12. O-O {[%emt 0:00:03]} Qd7 {[%emt 0:00:01]} 13. Qd3 {[%emt 0:00:03]} Rfc8 {[%emt 0:00:06]} 14. Rfd1 {[%emt 0:00:02]} b6 {[%emt 0:00:14]} 15. Rf1 {[%emt 0:00:16]} Rd8 {[%emt 0:00:22]} 16. Rfd1 {[%emt 0:00:03]} Rac8 {[%emt 0:00:01]} 17. Rf1 {[%emt 0:00:09]} Bb7 {[%emt 0:00:01]} 18. Rfd1 {[%emt 0:00:04]} Bh6 {[%emt 0:00:12]} 19. Rc2 {[%emt 0:00:05]} Bg7 {[%emt 0:00:10]} 20. Rcc1 {[%emt 0:00:02]} Ba6 {[%emt 0:00:01]} 21. b3 {[%emt 0:00:02]} Bb7 {[%emt 0:00:08]} 22. Re1 {[%emt 0:00:07]} Bc6 {[%emt 0:00:01]} 23. Red1 {[%emt 0:00:02]} Qb7 {[%emt 0:00:02]} 24. Rf1 {[%emt 0:00:07]} a6 {[%emt 0:00:02]} 25. Rfd1 {[%emt 0:00:02]} Rb8 {[%emt 0:00:03]} 26. Qe3 {[%emt 0:00:31]} Be8 {[%emt 0:00:05]} 27. Qd3 {[%emt 0:00:31]} Bc6 {[%emt 0:00:01]} 28. Qe3 {[%emt 0:00:02]} e5 {[%emt 0:00:01]} 29. Bxb6 {[%emt 0:00:39]} Qxb6 {[%emt 0:00:01]} 30. Qxb6 {[%emt 0:00:04]} Rxb6 {[%emt 0:00:02]} 31. Nd5 {[%emt 0:00:02]} Rb7 {[%emt 0:00:17]} 32. Rc2 {[%emt 0:00:05]} Kf8 {[%emt 0:00:06]} 33. Rcd2 {[%emt 0:00:04]} Kg8 {[%emt 0:00:10]} 34. Nxf6+ {[%emt 0:00:09]} Bxf6 {[%emt 0:00:08]} 35. Rxd6 {[%emt 0:00:01]} Rxd6 {[%emt 0:00:09]} 36. Rxd6 {[%emt 0:00:02]} Bg5 {[%emt 0:00:09]} 37. Rxc6 {[%emt 0:00:04]} Be3+ {[%emt 0:00:03]} 38. Kf1 {[%emt 0:00:01]} Ra7 {[%emt 0:00:05]} 39. Rb6 {[%emt 0:00:07]} Bxb6 {[%emt 0:00:02]} 40. b4 {[%emt 0:00:01]} a5 {[%emt 0:00:02]} 41. c5 {[%emt 0:00:01]} Bc7 {[%emt 0:00:01]} 42. b5 {[%emt 0:00:01]} Bb8 {[%emt 0:00:15]} 43. b6 {[%emt 0:00:01]} Re7 {[%emt 0:00:03]} 44. c6 {[%emt 0:00:01]} Kf8 {[%emt 0:00:14]} 45. Ke1 {[%emt 0:00:04]} Re6 {[%emt 0:00:02]} 46. Bb5 {[%emt 0:00:01]} Re7 {[%emt 0:00:03]} 47. Kd2 {[%emt 0:00:02]} Re6 {[%emt 0:00:07]} 48. Kc3 {[%emt 0:00:01]} Re7 {[%emt 0:00:07]} 49. Kc4 {[%emt 0:00:02]} f6 {[%emt 0:00:02]} 50. Kd5 {[%emt 0:00:01]} Kf7 {[%emt 0:00:07]} 51. Bc4 {[%emt 0:00:08]} Kg7 {[%emt 0:00:01]} 52. Ba6 {[%emt 0:00:04]} g5 {[%emt 0:00:13]} 53. Bc8 {[%emt 0:00:02]} h5 {[%emt 0:00:04]} 54. Bd7 {[%emt 0:00:03]} Kg6 {[%emt 0:00:20]} 55. Bf5+ {[%emt 0:00:01]} Kh6 {[%emt 0:00:01]} 56. Bd7 {[%emt 0:00:03]} h4 {[%emt 0:00:01]} 57. g3 {[%emt 0:00:16]} Kh5 {[%emt 0:00:07]} 58. Bg4+ {[%emt 0:00:11]} Kh6 {[%emt 0:00:03]} 59. gxh4 {[%emt 0:00:05]} gxh4 {[%emt 0:00:01]} 60. h3 {[%emt 0:00:02]} Kg5 {[%emt 0:00:02]} 61. Kc5 {[%emt 0:00:03]} Kf4 {[%emt 0:00:04]} 62. Kd5 {[%emt 0:00:01]} Ke3 {[%emt 0:00:04]} 63. Kc5 {[%emt 0:00:07]} Kd3 {[%emt 0:00:02]} 64. Kb5 {[%emt 0:00:01]} Kc3 {[%emt 0:00:03]} 65. Kxa5 {[%emt 0:00:04]} Kb2 {[%emt 0:00:01]} 66. a4 {[%emt 0:00:01]} Kb3 {[%emt 0:00:01]} 67. Kb5 {[%emt 0:00:01]} Rg7 {[%emt 0:00:09]} 68. a5 {[%emt 0:00:01]} Kc3 {[%emt 0:00:13]} 69. a6 {[%emt 0:00:01]} Kd4 {[%emt 0:00:01]} 70. Bd7 {[%emt 0:00:11]} Ke3 {[%emt 0:00:02]} 71. c7 {[%emt 0:00:01]} Bxc7 {[%emt 0:00:06]} 72. bxc7 {[%emt 0:00:04]} Rxd7 {[%emt 0:00:02]} 73. c8=Q {[%emt 0:00:02]} Rg7 {[%emt 0:00:02]} 74. Qc3+ {[%emt 0:00:02]} Kf4 {[%emt 0:00:01]} 75. Kb6 {[%emt 0:00:03]} Rg3 {[%emt 0:00:02]} 76. a7 {[%emt 0:00:04]} Rg8 {[%emt 0:00:03]} 77. Kb7 {[%emt 0:00:01]} Rg7+ {[%emt 0:00:01]} 78. Ka6 {[%emt 0:00:03]} Rg8 {[%emt 0:00:02]} 79. Qd3 {[%emt 0:00:05]} Kg3 {[%emt 0:00:03]} 80. Qd5 {[%emt 0:00:01]} Rf8 {[%emt 0:00:02]} 81. a8=Q {[%emt 0:00:04]} Rxa8+ {[%emt 0:00:01]} 82. Qxa8 {[%emt 0:00:01]} Kxh3 {[%emt 0:00:01]} 83. Qc6 {[%emt 0:00:02]} Kg3 {[%emt 0:00:01]} 84. Qc3 {[%emt 0:00:01]} h3 {[%emt 0:00:01]} 85. Qe1+ {[%emt 0:00:01]} Kxf3 {[%emt 0:00:02]} 86. Qh1+ {[%emt 0:00:02]} Kg3 {[%emt 0:00:01]} 87. Kb5 {[%emt 0:00:00]} h2 {[%emt 0:00:03]} 88. Kc4 {[%emt 0:00:01]} Kf4 {[%emt 0:00:01]} 89. Kd3 {[%emt 0:00:01]} Kg3 {[%emt 0:00:02]} 90. Ke3 {[%emt 0:00:01]} Kh3 {[%emt 0:00:03]} 91. Kf3 {[%emt 0:00:02]} Kh4 {[%emt 0:00:01]} 92. Qxh2+ {[%emt 0:00:02]} Kg5 {[%emt 0:00:00]} 93. Qg3+ {[%emt 0:00:02]} Kh6 {[%emt 0:00:01]} 94. Qh4+ {[%emt 0:00:01]} Kg7 {[%emt 0:00:01]} 95. Kg4 {[%emt 0:00:03]} Kf7 {[%emt 0:00:01]} 96. Kf5 {[%emt 0:00:00]} Ke7 {[%emt 0:00:00]} 97. Qxf6+ {[%emt 0:00:00]} Kd7 {[%emt 0:00:00]} 98. Qxe5 {[%emt 0:00:00]} Kc6 {[%emt 0:00:01]} 99. Qd5+ {[%emt 0:00:00]} Kc7 {[%emt 0:00:01]} 100. e5 {[%emt 0:00:00]} Kc8 {[%emt 0:00:02]} 101. e6 {[%emt 0:00:00]} Kc7 {[%emt 0:00:00]} 102. e7 {[%emt 0:00:00]} Kb6 {[%emt 0:00:01]} 103. e8=Q {[%emt 0:00:00]} Kc7 {[%emt 0:00:01]} 104. Qec6+ {[%emt 0:00:00]} Kb8 {[%emt 0:00:02]} 105. Qb7# {[%emt 0:00:00]} 1-0

[Event "3rd FIDE WCCC Blitz G08 2019"]
[Site "Minsk"]
[Date "2019.08.18"]
[Round "7.2"]
[White "Preobrazhenskaya, Diana"]
[Black "Asachenko, Ksenia"]
[Result "1-0"]
[ECO "C02"]
[WhiteElo "1361"]
[BlackElo "1169"]
[Annotator "NA"]
[PlyCount "61"]
[EventDate "2019.08.18"]
[EventType "swiss"]
[EventCountry "BLR"]
[SourceTitle "playchess.com"]
[Source "ChessBase"]
[SourceQuality "1"]
[TimeControl "300+2"]

1. e4 {[%emt 0:00:00]} c5 {[%emt 0:00:00]} 2. c3 {[%emt 0:00:01]} e6 {[%emt 0:00:00]} 3. d4 {[%emt 0:00:03]} d5 {[%emt 0:00:02]} 4. e5 {[%emt 0:00:03]} Nc6 {[%emt 0:00:01]} 5. Nf3 {[%emt 0:00:02]} Qb6 {[%emt 0:00:03]} 6. a3 {[%emt 0:00:01]} Nh6 {[%emt 0:00:03]} 7. b4 {[%emt 0:00:02]} cxd4 {[%emt 0:00:02]} 8. cxd4 {[%emt 0:00:02]} Nf5 {[%emt 0:00:04]} 9. Be3 {[%emt 0:00:24]} Bd7 {[%emt 0:00:15]} 10. Be2 {[%emt 0:00:13]} h6 {[%emt 0:00:08]} 11. O-O {[%emt 0:00:05]} g5 {[%emt 0:00:08]} 12. g4 {[%emt 0:00:39]} Nxe3 {[%emt 0:00:47]} 13. fxe3 {[%emt 0:00:02]} Bg7 {[%emt 0:00:32]} 14. Nc3 {[%emt 0:00:14]} Nxe5 {[%emt 0:01:14]} 15. Nxe5 {[%emt 0:00:22]} Bxe5 {[%emt 0:00:04]} 16. Na4 {[%emt 0:00:26]} Bxh2+ {[%emt 0:00:50]} 17. Kxh2 {[%emt 0:00:18]} Qd6+ {[%emt 0:00:02]} 18. Kg2 {[%emt 0:00:05]} a5 {[%emt 0:00:15]} 19. b5 {[%emt 0:00:11]} b6 {[%emt 0:00:09]} 20. Qe1 {[%emt 0:00:16]} f5 {[%emt 0:00:04]} 21. gxf5 {[%emt 0:00:09]} exf5 {[%emt 0:00:01]} 22. Qg3 {[%emt 0:00:05]} f4 {[%emt 0:00:16]} 23. exf4 {[%emt 0:00:14]} gxf4 {[%emt 0:00:03]} 24. Rxf4 {[%emt 0:00:21]} Qe6 {[%emt 0:00:13]} 25. Bh5+ {[%emt 0:00:06]} Kd8 {[%emt 0:00:11]} 26. Bg4 {[%emt 0:00:21]} Qd6 {[%emt 0:00:07]} 27. Bxd7 {[%emt 0:00:04]} Kxd7 {[%emt 0:00:02]} 28. Rf7+ {[%emt 0:00:02]} Ke8 {[%emt 0:00:03]} 29. Qxd6 {[%emt 0:00:03]} Rg8+ {[%emt 0:00:03]} 30. Kh3 {[%emt 0:00:03]} h5 {[%emt 0:00:03]} 31. Qe7# {[%emt 0:00:03]} 1-0

[Event "3rd FIDE WCCC Blitz G08 2019"]
[Site "Minsk"]
[Date "2019.08.18"]
[Round "7.3"]
[White "Olimova, Rukiya"]
[Black "Skamaroshchanka, Daryia"]
[Result "1/2-1/2"]
[ECO "A40"]
[WhiteElo "1178"]
[BlackElo "1034"]
[Annotator "NA"]
[PlyCount "88"]
[EventDate "2019.08.18"]
[EventType "swiss"]
[EventCountry "BLR"]
[SourceTitle "playchess.com"]
[Source "ChessBase"]
[SourceQuality "1"]
[TimeControl "300+2"]

1. d4 {[%emt 0:00:00]} g6 {[%emt 0:00:01]} 2. Bf4 {[%emt 0:00:01]} Bg7 {[%emt 0:00:02]} 3. e3 {[%emt 0:00:02]} b6 4. Nf3 {[%emt 0:00:02]} Bb7 {[%emt 0:00:02]} 5. Be2 {[%emt 0:00:01]} d6 {[%emt 0:00:02]} 6. O-O {[%emt 0:00:02]} Nd7 {[%emt 0:00:01]} 7. Nbd2 {[%emt 0:00:02]} e6 {[%emt 0:00:01]} 8. c4 {[%emt 0:00:03]} Ne7 {[%emt 0:00:01]} 9. Rc1 {[%emt 0:00:02]} O-O {[%emt 0:00:02]} 10. Qb3 {[%emt 0:00:09]} d5 {[%emt 0:00:06]} 11. Rfd1 {[%emt 0:00:04]} c5 {[%emt 0:00:04]} 12. Bg3 {[%emt 0:00:26]} cxd4 {[%emt 0:00:21]} 13. exd4 {[%emt 0:00:03]} Rc8 {[%emt 0:00:09]} 14. c5 {[%emt 0:00:25]} Nf5 {[%emt 0:00:15]} 15. Qb4 {[%emt 0:01:15]} a5 {[%emt 0:00:30]} 16. Qb5 {[%emt 0:00:17]} Bc6 {[%emt 0:00:18]} 17. Qd3 {[%emt 0:00:19]} bxc5 {[%emt 0:00:13]} 18. dxc5 {[%emt 0:00:05]} Bxb2 {[%emt 0:00:12]} 19. Rb1 {[%emt 0:00:09]} Bg7 {[%emt 0:00:01]} 20. Nb3 {[%emt 0:00:26]} Qe7 {[%emt 0:00:19]} 21. Nxa5 {[%emt 0:00:12]} Nxc5 {[%emt 0:00:02]} 22. Nxc6 {[%emt 0:00:11]} Rxc6 {[%emt 0:00:14]} 23. Qb5 {[%emt 0:00:05]} Rcc8 {[%emt 0:00:25]} 24. Bd3 {[%emt 0:00:10]} Nxg3 {[%emt 0:00:02]} 25. hxg3 {[%emt 0:00:02]} Nxd3 {[%emt 0:00:04]} 26. Qxd3 {[%emt 0:00:03]} Qc5 {[%emt 0:00:05]} 27. Rdc1 {[%emt 0:00:05]} Qd6 {[%emt 0:00:08]} 28. Qd2 {[%emt 0:00:13]} h5 {[%emt 0:00:10]} 29. Rc2 {[%emt 0:00:05]} Kh7 {[%emt 0:00:25]} 30. Ng5+ {[%emt 0:00:10]} Kg8 {[%emt 0:00:11]} 31. Nf3 {[%emt 0:00:03]} Rc5 {[%emt 0:00:17]} 32. Rxc5 {[%emt 0:00:05]} Qxc5 {[%emt 0:00:01]} 33. Rc1 {[%emt 0:00:02]} Qa3 {[%emt 0:00:20]} 34. Qc2 {[%emt 0:00:09]} Qb2 {[%emt 0:00:04]} 35. Qxb2 {[%emt 0:00:02]} Bxb2 {[%emt 0:00:02]} 36. Rb1 {[%emt 0:00:03]} Bg7 {[%emt 0:00:01]} 37. a4 {[%emt 0:00:05]} Ra8 {[%emt 0:00:02]} 38. Rb4 {[%emt 0:00:03]} Bf8 {[%emt 0:00:02]} 39. Rd4 {[%emt 0:00:05]} Bc5 {[%emt 0:00:09]} 40. Rf4 {[%emt 0:00:07]} Bd6 {[%emt 0:00:09]} 41. Rd4 {[%emt 0:00:03]} e5 {[%emt 0:00:04]} 42. Rxd5 {[%emt 0:00:01]} Bc7 {[%emt 0:00:11]} 43. Rc5 {[%emt 0:00:01]} Bd6 {[%emt 0:00:03]} 44. Rd5 {[%emt 0:00:01]} Bc7 {[%emt 0:00:01]} 1/2-1/2

[Event "3rd FIDE WCCC Blitz G08 2019"]
[Site "Minsk"]
[Date "2019.08.18"]
[Round "7.4"]
[White "Mutina, Evdokia"]
[Black "Dandish, Izabella"]
[Result "0-1"]
[ECO "A01"]
[WhiteElo "1001"]
[BlackElo "1563"]
[Annotator "NA"]
[PlyCount "118"]
[EventDate "2019.08.18"]
[EventType "swiss"]
[EventCountry "BLR"]
[SourceTitle "playchess.com"]
[Source "ChessBase"]
[SourceQuality "1"]
[TimeControl "300+2"]

1. b3 {[%emt 0:00:00]} e5 {[%emt 0:00:00]} 2. Bb2 {[%emt 0:00:01]} Nc6 {[%emt 0:00:01]} 3. e3 {[%emt 0:00:02]} d5 {[%emt 0:00:05]} 4. Bb5 {[%emt 0:00:01]} Bd6 {[%emt 0:00:05]} 5. f4 {[%emt 0:00:01]} a6 {[%emt 0:00:04]} 6. Bxc6+ {[%emt 0:00:03]} bxc6 {[%emt 0:00:01]} 7. fxe5 {[%emt 0:00:03]} Bf8 {[%emt 0:00:07]} 8. Nf3 {[%emt 0:00:06]} Be6 {[%emt 0:00:12]} 9. O-O {[%emt 0:00:04]} Bc5 {[%emt 0:00:07]} 10. Nd4 {[%emt 0:00:07]} Qd7 {[%emt 0:00:09]} 11. Nxe6 {[%emt 0:00:04]} Qxe6 {[%emt 0:00:02]} 12. d4 {[%emt 0:00:02]} Bb6 {[%emt 0:00:01]} 13. Ba3 {[%emt 0:00:09]} Ne7 {[%emt 0:00:06]} 14. Nd2 {[%emt 0:00:04]} O-O {[%emt 0:00:11]} 15. Nf3 {[%emt 0:00:02]} c5 {[%emt 0:00:03]} 16. Bxc5 {[%emt 0:00:22]} Bxc5 {[%emt 0:00:02]} 17. dxc5 {[%emt 0:00:01]} Nc6 {[%emt 0:00:03]} 18. Nd4 {[%emt 0:00:26]} Nxd4 19. exd4 {[%emt 0:00:03]} c6 {[%emt 0:00:15]} 20. Qf3 {[%emt 0:00:06]} Qg6 {[%emt 0:00:05]} 21. Qd3 {[%emt 0:00:04]} Qg4 {[%emt 0:00:11]} 22. Rf3 {[%emt 0:00:15]} h6 {[%emt 0:00:35]} 23. Raf1 {[%emt 0:00:06]} Qe4 {[%emt 0:00:25]} 24. Qxe4 {[%emt 0:00:05]} dxe4 {[%emt 0:00:01]} 25. Re3 {[%emt 0:00:01]} Rad8 {[%emt 0:00:08]} 26. Rxe4 Rfe8 27. Ref4 {[%emt 0:00:07]} Re7 {[%emt 0:00:05]} 28. c4 {[%emt 0:00:12]} Rdd7 {[%emt 0:00:07]} 29. Rf5 {[%emt 0:00:13]} Rxd4 {[%emt 0:00:10]} 30. Re1 {[%emt 0:00:27]} Rd2 {[%emt 0:00:11]} 31. Rf2 {[%emt 0:00:02]} Rd8 {[%emt 0:00:08]} 32. Rfe2 {[%emt 0:00:01]} Rde8 {[%emt 0:00:01]} 33. Kf2 {[%emt 0:00:05]} Kh7 {[%emt 0:00:01]} 34. Kf3 {[%emt 0:00:03]} Kg6 {[%emt 0:00:01]} 35. Kf4 {[%emt 0:00:02]} f5 {[%emt 0:00:22]} 36. g4 {[%emt 0:00:07]} fxg4 {[%emt 0:00:10]} 37. Kxg4 {[%emt 0:00:01]} h5+ {[%emt 0:00:03]} 38. Kf4 {[%emt 0:00:04]} Kf7 {[%emt 0:00:16]} 39. Re3 {[%emt 0:00:10]} Re6 {[%emt 0:00:14]} 40. Kg5 {[%emt 0:00:11]} g6 {[%emt 0:00:02]} 41. Rf3+ {[%emt 0:00:01]} Kg7 {[%emt 0:00:07]} 42. Rf6 {[%emt 0:00:10]} Rxe5+ {[%emt 0:00:06]} 43. Rxe5 Rxe5+ 44. Kf4 {[%emt 0:00:15]} Kxf6 {[%emt 0:00:03]} 45. Kf3 {[%emt 0:00:03]} Rxc5 {[%emt 0:00:01]} 46. Ke3 {[%emt 0:00:13]} g5 {[%emt 0:00:01]} 47. Kd4 {[%emt 0:00:03]} Rf5 {[%emt 0:00:02]} 48. a4 {[%emt 0:00:04]} Rf4+ {[%emt 0:00:02]} 49. Kc5 {[%emt 0:00:01]} g4 {[%emt 0:00:02]} 50. Kxc6 {[%emt 0:00:01]} Rf2 {[%emt 0:00:03]} 51. Kb6 {[%emt 0:00:01]} Rxh2 {[%emt 0:00:01]} 52. c5 {[%emt 0:00:01]} Rc2 {[%emt 0:00:03]} 53. c6 {[%emt 0:00:01]} g3 {[%emt 0:00:02]} 54. c7 {[%emt 0:00:01]} g2 {[%emt 0:00:03]} 55. Kxa6 {[%emt 0:00:06]} g1=Q {[%emt 0:00:05]} 56. c8=Q {[%emt 0:00:06]} Rxc8 {[%emt 0:00:05]} 57. b4 {[%emt 0:00:01]} Rc6+ {[%emt 0:00:05]} 58. Kb7 {[%emt 0:00:05]} Qb6+ {[%emt 0:00:02]} 59. Ka8 {[%emt 0:00:06]} Rc8# {[%emt 0:00:01]} 0-1

[Event "3rd FIDE WCCC Blitz G08 2019"]
[Site "Minsk"]
[Date "2019.08.18"]
[Round "7.5"]
[White "Polakiewicz, Blanka"]
[Black "Frolova, Umila"]
[Result "0-1"]
[ECO "B06"]
[WhiteElo "1135"]
[BlackElo "1252"]
[Annotator "NA"]
[PlyCount "60"]
[EventDate "2019.08.18"]
[EventType "swiss"]
[EventCountry "BLR"]
[SourceTitle "playchess.com"]
[Source "ChessBase"]
[SourceQuality "1"]
[TimeControl "300+2"]

1. e4 {[%emt 0:00:00]} g6 {[%emt 0:00:00]} 2. d4 {[%emt 0:00:04]} Bg7 {[%emt 0:00:00]} 3. Nf3 {[%emt 0:00:05]} d6 {[%emt 0:00:00]} 4. Bc4 {[%emt 0:00:05]} Nf6 {[%emt 0:00:02]} 5. Nc3 {[%emt 0:00:02]} O-O {[%emt 0:00:01]} 6. O-O {[%emt 0:00:02]} Nc6 {[%emt 0:00:09]} 7. Be3 {[%emt 0:00:11]} e5 {[%emt 0:00:05]} 8. d5 {[%emt 0:00:13]} Ne7 {[%emt 0:00:01]} 9. Qd2 {[%emt 0:00:22]} Nd7 {[%emt 0:00:04]} 10. Bh6 {[%emt 0:00:20]} f5 {[%emt 0:00:05]} 11. Bxg7 {[%emt 0:00:08]} Kxg7 {[%emt 0:00:01]} 12. exf5 {[%emt 0:00:11]} gxf5 {[%emt 0:00:11]} 13. Qg5+ {[%emt 0:00:23]} Kh8 {[%emt 0:00:02]} 14. Nh4 {[%emt 0:00:17]} Rg8 {[%emt 0:00:11]} 15. Qe3 {[%emt 0:00:26]} f4 {[%emt 0:00:09]} 16. Qe2 {[%emt 0:00:12]} Nf6 {[%emt 0:00:05]} 17. Nf3 {[%emt 0:00:07]} Bh3 {[%emt 0:00:07]} 18. Nh4 {[%emt 0:00:41]} Rg4 {[%emt 0:00:31]} 19. Qf3 {[%emt 0:00:57]} Rxh4 {[%emt 0:00:25]} 20. gxh3 {[%emt 0:00:06]} e4 {[%emt 0:00:08]} 21. Nxe4 {[%emt 0:00:15]} Qg8+ {[%emt 0:00:45]} 22. Kh1 {[%emt 0:00:06]} Nxe4 {[%emt 0:00:52]} 23. Qxe4 {[%emt 0:00:03]} Ng6 {[%emt 0:00:13]} 24. Qd4+ {[%emt 0:00:23]} Ne5 {[%emt 0:00:06]} 25. Qe4 {[%emt 0:00:02]} Re8 {[%emt 0:00:28]} 26. Rg1 {[%emt 0:00:06]} Qf7 {[%emt 0:00:11]} 27. Qe2 {[%emt 0:00:02]} Rxh3 {[%emt 0:00:13]} 28. Rae1 {[%emt 0:00:01]} f3 {[%emt 0:00:14]} 29. Qe3 {[%emt 0:00:01]} Qh5 {[%emt 0:00:08]} 30. Qc3 {[%emt 0:00:01]} Rxh2# 0-1